[Event "Titled Tuesday Blitz May 9 Early 2023"]
[White "Nissinen, Niilo Man"]
[Black "Averjanov, Alexey"]
[WhiteFideId "30950767"]
[BlackFideId "14109867"]
[WhiteElo "1952"]
[BlackElo "2716"]
[Result "0-1"]
[Round "08"]
[TimeControl "180+2"]
[Date "2023.05.09"]
[WhiteClock "0:00:03"]
[BlackClock "0:01:33"]

1. e4 {[%clk 0:02:58]}  c6 {[%clk 0:03:00]} 2. d4 {[%clk 0:02:58]}  d5 {[%clk 0:03:01]} 3. Nc3 {[%clk 0:02:59]}  dxe4 {[%clk 0:03:01]} 4. Nxe4 {[%clk 0:03:00]}  Bf5 {[%clk 0:03:01]} 5. Ng3 {[%clk 0:03:00]}  Bg6 {[%clk 0:03:01]} 6. h4 {[%clk 0:03:01]}  h6 {[%clk 0:03:01]} 7. Nf3 {[%clk 0:03:01]}  Nd7 {[%clk 0:03:01]} 8. h5 {[%clk 0:03:01]}  Bh7 {[%clk 0:03:01]} 9. Bd3 {[%clk 0:03:01]}  Bxd3 {[%clk 0:03:02]} 10. Qxd3 {[%clk 0:03:02]}  e6 {[%clk 0:03:03]} 11. Bd2 {[%clk 0:03:02]}  Ngf6 {[%clk 0:03:04]} 12. O-O-O {[%clk 0:03:01]}  Be7 {[%clk 0:03:05]} 13. Ne4 {[%clk 0:03:02]}  Nxe4 {[%clk 0:03:05]} 14. Qxe4 {[%clk 0:03:03]}  Nf6 {[%clk 0:03:06]} 15. Qd3 {[%clk 0:03:03]}  Qd5 {[%clk 0:03:07]} 16. Kb1 {[%clk 0:03:01]}  O-O {[%clk 0:03:04]} 17. c4 {[%clk 0:02:35]}  Qe4 {[%clk 0:03:04]} 18. Qxe4 {[%clk 0:02:33]}  Nxe4 {[%clk 0:03:04]} 19. Be3 {[%clk 0:02:31]}  f5 {[%clk 0:03:05]} 20. Rhf1 {[%clk 0:02:18]}  Rad8 {[%clk 0:02:55]} 21. Ne5 {[%clk 0:02:14]}  Rfe8 {[%clk 0:02:50]} 22. g4 {[%clk 0:01:45]}  fxg4 {[%clk 0:02:41]} 23. Nxg4 {[%clk 0:01:46]}  Nf6 {[%clk 0:02:31]} 24. Rg1 {[%clk 0:01:26]}  Nxg4 {[%clk 0:02:28]} 25. Rxg4 {[%clk 0:01:27]}  Kf7 {[%clk 0:02:28]} 26. Rdg1 {[%clk 0:01:25]}  Bf6 {[%clk 0:02:28]} 27. d5 {[%clk 0:00:56]}  exd5 {[%clk 0:02:21]} 28. cxd5 {[%clk 0:00:46]}  Rxd5 {[%clk 0:02:22]} 29. Bxa7 {[%clk 0:00:41]}  Rxh5 {[%clk 0:02:22]} 30. Rb4 {[%clk 0:00:41]}  b5 {[%clk 0:02:11]} 31. Rc1 {[%clk 0:00:39]}  Re6 {[%clk 0:02:10]} 32. a4 {[%clk 0:00:26]}  bxa4 {[%clk 0:02:09]} 33. Rxa4 {[%clk 0:00:27]}  Rb5 {[%clk 0:02:08]} 34. Rc2 {[%clk 0:00:24]}  h5 {[%clk 0:02:05]} 35. Bd4 {[%clk 0:00:21]}  g5 {[%clk 0:02:01]} 36. Bxf6 {[%clk 0:00:08]}  Kxf6 {[%clk 0:02:02]} 37. Rac4 {[%clk 0:00:07]}  Rb6 {[%clk 0:01:58]} 38. f4 {[%clk 0:00:07]}  g4 {[%clk 0:01:52]} 39. Rc5 {[%clk 0:00:08]}  Rb5 {[%clk 0:01:46]} 40. Rxb5 {[%clk 0:00:05]}  cxb5 {[%clk 0:01:46]} 41. Rc5 {[%clk 0:00:06]}  h4 {[%clk 0:01:42]} 42. Rg5 {[%clk 0:00:06]}  g3 {[%clk 0:01:43]} 43. Rg4 {[%clk 0:00:07]}  Re1+ {[%clk 0:01:41]} 44. Kc2 {[%clk 0:00:07]}  h3 {[%clk 0:01:38]} 45. Kd2 {[%clk 0:00:07]}  h2 {[%clk 0:01:34]} 46. Kxe1 {[%clk 0:00:04]}  h1=Q+ {[%clk 0:01:33]} 47. Ke2 {[%clk 0:00:05]}  g2 {[%clk 0:01:33]} 48. Kf2 {[%clk 0:00:03]}  Qf1+ {[%clk 0:01:33]} 0-1


[Site "https://www.chess.com"]

[Event "Titled Tuesday Blitz May 9 Early 2023"]
[White "Ibarra Jerez, Jose Carlos"]
[Black "Kohler, Aran"]
[WhiteFideId "2226332"]
[BlackFideId "1002856"]
[WhiteElo "2638"]
[BlackElo "2388"]
[Result "1-0"]
[Round "08"]
[TimeControl "180+2"]
[Date "2023.05.09"]
[WhiteClock "0:02:24"]
[BlackClock "0:01:10"]

1. e4 {[%clk 0:03:00]}  c6 {[%clk 0:02:58]} 2. Nf3 {[%clk 0:03:00]}  g6 {[%clk 0:02:56]} 3. d4 {[%clk 0:03:00]}  Bg7 {[%clk 0:02:57]} 4. Nc3 {[%clk 0:03:00]}  d6 {[%clk 0:02:55]} 5. Be3 {[%clk 0:03:00]}  Nd7 {[%clk 0:02:54]} 6. Qd2 {[%clk 0:02:59]}  Qc7 {[%clk 0:02:53]} 7. Bd3 {[%clk 0:02:56]}  e5 {[%clk 0:02:53]} 8. O-O {[%clk 0:02:53]}  Ne7 {[%clk 0:02:52]} 9. Bh6 {[%clk 0:02:51]}  O-O {[%clk 0:02:47]} 10. Rad1 {[%clk 0:02:50]}  Re8 {[%clk 0:02:44]} 11. Bxg7 {[%clk 0:02:47]}  Kxg7 {[%clk 0:02:44]} 12. Ne2 {[%clk 0:02:48]}  f6 {[%clk 0:02:33]} 13. Ng3 {[%clk 0:02:43]}  exd4 {[%clk 0:02:31]} 14. Nxd4 {[%clk 0:02:43]}  Ne5 {[%clk 0:02:31]} 15. f4 {[%clk 0:02:37]}  Nxd3 {[%clk 0:02:20]} 16. Qxd3 {[%clk 0:02:37]}  Bg4 {[%clk 0:02:15]} 17. Rde1 {[%clk 0:02:36]}  Bd7 {[%clk 0:01:56]} 18. Rd1 {[%clk 0:02:36]}  Rad8 {[%clk 0:01:54]} 19. Qc3 {[%clk 0:02:32]}  d5 {[%clk 0:01:48]} 20. e5 {[%clk 0:02:30]}  fxe5 {[%clk 0:01:46]} 21. fxe5 {[%clk 0:02:30]}  c5 {[%clk 0:01:38]} 22. e6 {[%clk 0:02:29]}  Qb6 {[%clk 0:01:10]} 23. Ndf5+ {[%clk 0:02:24]} 1-0


[Site "https://www.chess.com"]

[Event "Titled Tuesday Blitz May 9 Early 2023"]
[White "Molina, Roberto Junio Brito"]
[Black "Yaniuk, Volodymyr"]
[WhiteFideId "2109450"]
[BlackFideId "14133083"]
[WhiteElo "2376"]
[BlackElo "2141"]
[Result "1/2-1/2"]
[Round "08"]
[TimeControl "180+2"]
[Date "2023.05.09"]
[WhiteClock "0:01:18"]
[BlackClock "0:00:58"]

1. d4 {[%clk 0:03:00]}  d5 {[%clk 0:02:55]} 2. c4 {[%clk 0:03:00]}  e6 {[%clk 0:02:55]} 3. Nc3 {[%clk 0:03:00]}  Nf6 {[%clk 0:02:56]} 4. Bg5 {[%clk 0:02:58]}  Bb4 {[%clk 0:02:56]} 5. e3 {[%clk 0:02:57]}  O-O {[%clk 0:02:55]} 6. a3 {[%clk 0:02:56]}  Be7 {[%clk 0:02:52]} 7. Nf3 {[%clk 0:02:55]}  b6 {[%clk 0:02:50]} 8. Bxf6 {[%clk 0:02:51]}  Bxf6 {[%clk 0:02:50]} 9. cxd5 {[%clk 0:02:52]}  exd5 {[%clk 0:02:51]} 10. Bd3 {[%clk 0:02:52]}  h6 {[%clk 0:02:49]} 11. O-O {[%clk 0:02:51]}  Bb7 {[%clk 0:02:46]} 12. Rc1 {[%clk 0:02:51]}  Nd7 {[%clk 0:02:45]} 13. Qe2 {[%clk 0:02:50]}  a6 {[%clk 0:02:43]} 14. Rfd1 {[%clk 0:02:49]}  Re8 {[%clk 0:02:43]} 15. Qc2 {[%clk 0:02:41]}  Be7 {[%clk 0:02:38]} 16. Qb3 {[%clk 0:02:35]}  Nf6 {[%clk 0:02:26]} 17. Bf1 {[%clk 0:02:33]}  Bd6 {[%clk 0:02:25]} 18. g3 {[%clk 0:02:32]}  g6 {[%clk 0:02:14]} 19. Bg2 {[%clk 0:02:31]}  Kg7 {[%clk 0:02:14]} 20. Rd2 {[%clk 0:02:29]}  Ne4 {[%clk 0:02:10]} 21. Nxe4 {[%clk 0:02:26]}  dxe4 {[%clk 0:02:11]} 22. Ne1 {[%clk 0:02:24]}  Qf6 {[%clk 0:02:06]} 23. Qd1 {[%clk 0:02:23]}  Qe6 {[%clk 0:02:01]} 24. Nc2 {[%clk 0:02:19]}  a5 {[%clk 0:01:59]} 25. Bf1 {[%clk 0:02:12]}  c5 {[%clk 0:01:51]} 26. dxc5 {[%clk 0:02:08]}  Bxc5 {[%clk 0:01:52]} 27. Nd4 {[%clk 0:02:08]}  Qf6 {[%clk 0:01:48]} 28. Nb3 {[%clk 0:02:00]}  Bf8 {[%clk 0:01:36]} 29. Rc7 {[%clk 0:01:55]}  Re7 {[%clk 0:01:29]} 30. Rxe7 {[%clk 0:01:48]}  Bxe7 {[%clk 0:01:28]} 31. Nd4 {[%clk 0:01:43]}  Rd8 {[%clk 0:01:24]} 32. Nb5 {[%clk 0:01:39]}  Rxd2 {[%clk 0:01:12]} 33. Qxd2 {[%clk 0:01:40]}  Bc6 {[%clk 0:01:07]} 34. Nc3 {[%clk 0:01:39]}  Bd6 {[%clk 0:01:02]} 35. Bg2 {[%clk 0:01:37]}  Be5 {[%clk 0:01:01]} 36. Nxe4 {[%clk 0:01:29]}  Bxe4 {[%clk 0:01:00]} 37. Bxe4 {[%clk 0:01:30]}  Bxb2 {[%clk 0:01:01]} 38. a4 {[%clk 0:01:29]}  Ba3 {[%clk 0:00:56]} 39. Qd4 {[%clk 0:01:24]}  Bc5 {[%clk 0:00:54]} 40. Qxf6+ {[%clk 0:01:23]}  Kxf6 {[%clk 0:00:55]} 41. Kf1 {[%clk 0:01:24]}  Ke5 {[%clk 0:00:53]} 42. Bd3 {[%clk 0:01:24]}  f5 {[%clk 0:00:51]} 43. Bc4 {[%clk 0:01:21]}  g5 {[%clk 0:00:49]} 44. Ke2 {[%clk 0:01:21]}  f4 {[%clk 0:00:48]} 45. exf4+ {[%clk 0:01:18]}  gxf4 {[%clk 0:00:49]} 46. Kf3 {[%clk 0:01:18]}  fxg3 {[%clk 0:00:49]} 47. hxg3 {[%clk 0:01:17]}  Kf6 {[%clk 0:00:49]} 48. Ke2 {[%clk 0:01:16]}  Ke5 {[%clk 0:00:49]} 49. f4+ {[%clk 0:01:15]}  Kf6 {[%clk 0:00:49]} 50. Kf3 {[%clk 0:01:15]}  Bd6 {[%clk 0:00:49]} 51. g4 {[%clk 0:01:15]}  Bc7 {[%clk 0:00:48]} 52. Ke4 {[%clk 0:01:15]}  Bd6 {[%clk 0:00:49]} 53. Bb5 {[%clk 0:01:15]}  Bc7 {[%clk 0:00:49]} 54. Be8 {[%clk 0:01:14]}  Bd6 {[%clk 0:00:48]} 55. Bd7 {[%clk 0:01:11]}  Bc7 {[%clk 0:00:46]} 56. Bb5 {[%clk 0:01:07]}  Bd6 {[%clk 0:00:46]} 57. Be2 {[%clk 0:01:07]}  Bc7 {[%clk 0:00:46]} 58. f5 {[%clk 0:01:07]}  Bd6 {[%clk 0:00:46]} 59. Kd5 {[%clk 0:01:08]}  Bc5 {[%clk 0:00:45]} 60. Kc6 {[%clk 0:01:08]}  h5 {[%clk 0:00:41]} 61. gxh5 {[%clk 0:01:07]}  Kxf5 {[%clk 0:00:41]} 62. Bd3+ {[%clk 0:01:06]}  Kg5 {[%clk 0:00:41]} 63. Be2 {[%clk 0:01:06]}  Kh6 {[%clk 0:00:42]} 64. Kd5 {[%clk 0:01:07]}  Bg1 {[%clk 0:00:42]} 65. Ke4 {[%clk 0:01:06]}  Bc5 {[%clk 0:00:43]} 66. Kf5 {[%clk 0:01:07]}  Bg1 {[%clk 0:00:44]} 67. Kg4 {[%clk 0:01:07]}  Bc5 {[%clk 0:00:45]} 68. Bd3 {[%clk 0:01:07]}  Bb4 {[%clk 0:00:45]} 69. Bc2 {[%clk 0:01:07]}  Bc5 {[%clk 0:00:46]} 70. Bd1 {[%clk 0:01:08]}  Bb4 {[%clk 0:00:47]} 71. Kf5 {[%clk 0:01:08]}  Bc5 {[%clk 0:00:47]} 72. Ke4 {[%clk 0:01:09]}  Bb4 {[%clk 0:00:48]} 73. Kd5 {[%clk 0:01:10]}  Bc5 {[%clk 0:00:48]} 74. Kc6 {[%clk 0:01:11]}  Bg1 {[%clk 0:00:49]} 75. Kb5 {[%clk 0:01:11]}  Bc5 {[%clk 0:00:50]} 76. Kc4 {[%clk 0:01:12]}  Bg1 {[%clk 0:00:50]} 77. Kd3 {[%clk 0:01:13]}  Bc5 {[%clk 0:00:51]} 78. Ke2 {[%clk 0:01:14]}  Bb4 {[%clk 0:00:51]} 79. Ke3 {[%clk 0:01:14]}  Bc5+ {[%clk 0:00:52]} 80. Ke4 {[%clk 0:01:15]}  Bb4 {[%clk 0:00:52]} 81. Kd5 {[%clk 0:01:15]}  Bc5 {[%clk 0:00:53]} 82. Kc4 {[%clk 0:01:16]}  Bg1 {[%clk 0:00:54]} 83. Kb5 {[%clk 0:01:16]}  Bc5 {[%clk 0:00:55]} 84. Ka6 {[%clk 0:01:17]}  Bg1 {[%clk 0:00:55]} 85. Kb7 {[%clk 0:01:17]}  Bc5 {[%clk 0:00:56]} 86. Kc6 {[%clk 0:01:17]}  Bg1 {[%clk 0:00:57]} 87. Kd5 {[%clk 0:01:18]}  Bc5 {[%clk 0:00:58]} 1/2-1/2


[Site "https://www.chess.com"]

[Event "Titled Tuesday Blitz May 9 Early 2023"]
[White "Ismagilov, Damir"]
[Black "Hasangatin, Ramil"]
[WhiteFideId "34199982"]
[BlackFideId "4122160"]
[WhiteElo "2143"]
[BlackElo "2279"]
[Result "0-1"]
[Round "08"]
[TimeControl "180+2"]
[Date "2023.05.09"]
[WhiteClock "0:00:00"]
[BlackClock "0:00:19"]

1. d4 {[%clk 0:03:00]}  d6 {[%clk 0:02:58]} 2. Nf3 {[%clk 0:03:00]}  Bg4 {[%clk 0:02:58]} 3. g3 {[%clk 0:02:56]}  Bxf3 {[%clk 0:02:57]} 4. exf3 {[%clk 0:02:55]}  c6 {[%clk 0:02:58]} 5. Bg2 {[%clk 0:02:54]}  g6 {[%clk 0:02:59]} 6. f4 {[%clk 0:02:54]}  Bg7 {[%clk 0:02:59]} 7. O-O {[%clk 0:02:54]}  e6 {[%clk 0:02:59]} 8. c4 {[%clk 0:02:45]}  d5 {[%clk 0:02:54]} 9. Nc3 {[%clk 0:02:30]}  Ne7 {[%clk 0:02:54]} 10. c5 {[%clk 0:02:27]}  b6 {[%clk 0:02:52]} 11. Be3 {[%clk 0:02:10]}  bxc5 {[%clk 0:02:45]} 12. Na4 {[%clk 0:02:08]}  cxd4 {[%clk 0:02:31]} 13. Bxd4 {[%clk 0:02:09]}  O-O {[%clk 0:02:26]} 14. Bxg7 {[%clk 0:02:07]}  Kxg7 {[%clk 0:02:27]} 15. Qd4+ {[%clk 0:02:07]}  Kg8 {[%clk 0:02:27]} 16. Nc5 {[%clk 0:02:06]}  Nd7 {[%clk 0:02:14]} 17. Rfc1 {[%clk 0:01:57]}  Rb8 {[%clk 0:02:05]} 18. b4 {[%clk 0:01:55]}  Nf5 {[%clk 0:01:58]} 19. Qd2 {[%clk 0:01:50]}  Nxc5 {[%clk 0:01:56]} 20. Rxc5 {[%clk 0:01:51]}  Rb6 {[%clk 0:01:51]} 21. Rac1 {[%clk 0:01:50]}  Qd6 {[%clk 0:01:46]} 22. a3 {[%clk 0:01:41]}  Ra8 {[%clk 0:01:22]} 23. Bf1 {[%clk 0:01:34]}  Ne7 {[%clk 0:01:18]} 24. Qd4 {[%clk 0:01:30]}  Rd8 {[%clk 0:01:09]} 25. Bd3 {[%clk 0:01:29]}  Nf5 {[%clk 0:00:55]} 26. Bxf5 {[%clk 0:01:27]}  exf5 {[%clk 0:00:55]} 27. Re1 {[%clk 0:01:21]}  Rb5 {[%clk 0:00:46]} 28. Rc3 {[%clk 0:01:18]}  a5 {[%clk 0:00:46]} 29. Rce3 {[%clk 0:01:14]}  Rf8 {[%clk 0:00:41]} 30. bxa5 {[%clk 0:00:44]}  Rxa5 {[%clk 0:00:41]} 31. Qc3 {[%clk 0:00:23]}  Raa8 {[%clk 0:00:37]} 32. Rc1 {[%clk 0:00:15]}  Rac8 {[%clk 0:00:32]} 33. Qc5 {[%clk 0:00:13]}  Qxc5 {[%clk 0:00:29]} 34. Rxc5 {[%clk 0:00:14]}  Rfd8 {[%clk 0:00:30]} 35. Rec3 {[%clk 0:00:13]}  Rd6 {[%clk 0:00:30]} 36. Kf1 {[%clk 0:00:12]}  Kf8 {[%clk 0:00:30]} 37. Ke2 {[%clk 0:00:09]}  Ke7 {[%clk 0:00:30]} 38. Kd3 {[%clk 0:00:09]}  Kd7 {[%clk 0:00:30]} 39. Rb3 {[%clk 0:00:08]}  Rc7 {[%clk 0:00:31]} 40. Kd4 {[%clk 0:00:08]}  Re6 {[%clk 0:00:31]} 41. Re3 {[%clk 0:00:08]}  Re4+ {[%clk 0:00:27]} 42. Rxe4 {[%clk 0:00:07]}  fxe4 {[%clk 0:00:28]} 43. Ke5 {[%clk 0:00:08]}  Ra7 {[%clk 0:00:27]} 44. Rc3 {[%clk 0:00:05]}  Ra4 {[%clk 0:00:23]} 45. Kf6 {[%clk 0:00:05]}  Kd6 {[%clk 0:00:23]} 46. Kxf7 {[%clk 0:00:04]}  d4 {[%clk 0:00:23]} 47. Rb3 {[%clk 0:00:05]}  d3 {[%clk 0:00:23]} 48. Kg7 {[%clk 0:00:02]}  d2 {[%clk 0:00:21]} 49. Rb1 {[%clk 0:00:03]}  c5 {[%clk 0:00:18]} 50. Kxh7 {[%clk 0:00:01]}  c4 {[%clk 0:00:18]} 51. Kxg6 {[%clk 0:00:02]}  c3 {[%clk 0:00:19]} 52. Rd1 {[%clk 0:00:02]}  Rd4 {[%clk 0:00:18]} 53. f5 {[%clk 0:00:00]}  c2 {[%clk 0:00:19]} 0-1


[Site "https://www.chess.com"]

[Event "Titled Tuesday Blitz May 9 Early 2023"]
[White "Starozhilov, Leonid"]
[Black "Janaszak, Dawid"]
[WhiteFideId "14106752"]
[BlackFideId "1119206"]
[WhiteElo "2352"]
[BlackElo "2220"]
[Result "0-1"]
[Round "08"]
[TimeControl "180+2"]
[Date "2023.05.09"]
[WhiteClock "0:00:03"]
[BlackClock "0:00:10"]

1. e4 {[%clk 0:03:00]}  c5 {[%clk 0:02:59]} 2. Nf3 {[%clk 0:03:00]}  Nc6 {[%clk 0:03:00]} 3. Bb5 {[%clk 0:02:59]}  e5 {[%clk 0:03:00]} 4. Nc3 {[%clk 0:02:57]}  d6 {[%clk 0:02:58]} 5. O-O {[%clk 0:02:55]}  Ne7 {[%clk 0:02:58]} 6. Nd5 {[%clk 0:02:54]}  a6 {[%clk 0:02:58]} 7. Nxe7 {[%clk 0:02:54]}  Bxe7 {[%clk 0:02:59]} 8. Bc4 {[%clk 0:02:54]}  Bg4 {[%clk 0:02:55]} 9. h3 {[%clk 0:02:53]}  Bh5 {[%clk 0:02:55]} 10. c3 {[%clk 0:02:52]}  O-O {[%clk 0:02:55]} 11. d3 {[%clk 0:02:45]}  Kh8 {[%clk 0:02:54]} 12. g4 {[%clk 0:02:45]}  Bg6 {[%clk 0:02:53]} 13. a4 {[%clk 0:02:43]}  Qd7 {[%clk 0:02:48]} 14. Kg2 {[%clk 0:02:41]}  h5 {[%clk 0:02:34]} 15. Nh2 {[%clk 0:02:35]}  Nd8 {[%clk 0:02:19]} 16. Qf3 {[%clk 0:02:11]}  Ne6 {[%clk 0:02:17]} 17. Be3 {[%clk 0:01:59]}  h4 {[%clk 0:02:11]} 18. Qe2 {[%clk 0:01:51]}  Nc7 {[%clk 0:01:44]} 19. f4 {[%clk 0:01:06]}  exf4 {[%clk 0:01:39]} 20. Bxf4 {[%clk 0:01:07]}  d5 {[%clk 0:01:40]} 21. exd5 {[%clk 0:01:04]}  Nxd5 {[%clk 0:01:41]} 22. Bd2 {[%clk 0:00:43]}  Rfe8 {[%clk 0:01:39]} 23. Qf3 {[%clk 0:00:42]}  Nb6 {[%clk 0:01:32]} 24. Bxf7 {[%clk 0:00:27]}  Rf8 {[%clk 0:00:59]} 25. Bxg6 {[%clk 0:00:27]}  Rxf3 {[%clk 0:01:00]} 26. Rxf3 {[%clk 0:00:27]}  Nc4 {[%clk 0:00:53]} 27. dxc4 {[%clk 0:00:20]}  Qxd2+ {[%clk 0:00:54]} 28. Rf2 {[%clk 0:00:21]}  Qd6 {[%clk 0:00:55]} 29. Bf5 {[%clk 0:00:13]}  Qg3+ {[%clk 0:00:55]} 30. Kf1 {[%clk 0:00:12]}  Qxh3+ {[%clk 0:00:50]} 31. Kg1 {[%clk 0:00:13]}  Qg3+ {[%clk 0:00:49]} 32. Kf1 {[%clk 0:00:13]}  h3 {[%clk 0:00:46]} 33. Rd1 {[%clk 0:00:11]}  Bh4 {[%clk 0:00:45]} 34. Rdd2 {[%clk 0:00:09]}  Re8 {[%clk 0:00:44]} 35. Nf3 {[%clk 0:00:08]}  h2 {[%clk 0:00:33]} 36. Nxh2 {[%clk 0:00:07]}  Qe3 {[%clk 0:00:30]} 37. Rfe2 {[%clk 0:00:06]}  Qf4+ {[%clk 0:00:28]} 38. Kg2 {[%clk 0:00:05]}  Qg3+ {[%clk 0:00:27]} 39. Kf1 {[%clk 0:00:04]}  Rf8 {[%clk 0:00:25]} 40. Rf2 {[%clk 0:00:04]}  g6 {[%clk 0:00:24]} 41. Nf3 {[%clk 0:00:04]}  Qh3+ {[%clk 0:00:20]} 42. Kg1 {[%clk 0:00:02]}  Bxf2+ {[%clk 0:00:20]} 43. Rxf2 {[%clk 0:00:02]}  Qg3+ {[%clk 0:00:20]} 44. Kf1 {[%clk 0:00:01]}  gxf5 {[%clk 0:00:20]} 45. g5 {[%clk 0:00:02]}  Re8 {[%clk 0:00:18]} 46. g6 {[%clk 0:00:01]}  Kg8 {[%clk 0:00:18]} 47. Ng1 {[%clk 0:00:01]}  Qe3 {[%clk 0:00:15]} 48. Ne2 {[%clk 0:00:02]}  Qd2 {[%clk 0:00:14]} 49. Nf4 {[%clk 0:00:02]}  Qc1+ {[%clk 0:00:14]} 50. Kg2 {[%clk 0:00:03]}  Qe3 {[%clk 0:00:13]} 51. Rf3 {[%clk 0:00:02]}  Qe4 {[%clk 0:00:14]} 52. Kg3 {[%clk 0:00:02]}  Qe5 {[%clk 0:00:13]} 53. Kg2 {[%clk 0:00:02]}  Rd8 {[%clk 0:00:14]} 54. Rf2 {[%clk 0:00:03]}  Qe4+ {[%clk 0:00:13]} 55. Kg3 {[%clk 0:00:03]}  Rd1 {[%clk 0:00:11]} 56. Re2 {[%clk 0:00:03]}  Rg1+ {[%clk 0:00:11]} 57. Kf2 {[%clk 0:00:03]}  Qxf4+ {[%clk 0:00:10]} 58. Kxg1 {[%clk 0:00:04]}  Qg4+ {[%clk 0:00:10]} 59. Rg2 {[%clk 0:00:04]}  Qd1+ {[%clk 0:00:10]} 60. Kf2 {[%clk 0:00:04]}  Qxa4 {[%clk 0:00:10]} 61. Kf3 {[%clk 0:00:05]}  Qxc4 {[%clk 0:00:10]} 62. Re2 {[%clk 0:00:04]}  Kg7 {[%clk 0:00:10]} 63. Re7+ {[%clk 0:00:03]}  Kxg6 {[%clk 0:00:10]} 64. Kf2 {[%clk 0:00:03]}  b5 {[%clk 0:00:10]} 65. Ra7 {[%clk 0:00:03]}  b4 {[%clk 0:00:10]} 66. Kg1 {[%clk 0:00:02]}  bxc3 {[%clk 0:00:10]} 67. bxc3 {[%clk 0:00:03]}  Kg5 {[%clk 0:00:10]} 68. Kf2 {[%clk 0:00:02]}  Kf4 {[%clk 0:00:10]} 69. Ke1 {[%clk 0:00:03]}  Qxc3+ {[%clk 0:00:10]} 70. Ke2 {[%clk 0:00:02]}  Qc2+ {[%clk 0:00:10]} 71. Ke1 {[%clk 0:00:03]}  c4 {[%clk 0:00:11]} 72. Rxa6 {[%clk 0:00:02]}  c3 {[%clk 0:00:11]} 73. Rd6 {[%clk 0:00:02]}  Qb1+ {[%clk 0:00:11]} 74. Rd1 {[%clk 0:00:01]}  c2 {[%clk 0:00:11]} 75. Kf2 {[%clk 0:00:01]}  cxd1=Q {[%clk 0:00:10]} 76. Kg2 {[%clk 0:00:02]}  Qh1+ {[%clk 0:00:10]} 77. Kf2 {[%clk 0:00:03]}  Qbe1# {[%clk 0:00:10]} 0-1


[Site "https://www.chess.com"]

[Event "Titled Tuesday Blitz May 9 Early 2023"]
[White "Hua, Lefong"]
[Black "Garv Gaur"]
[WhiteFideId "2602253"]
[BlackFideId "45030839"]
[WhiteElo "2706"]
[BlackElo "2068"]
[Result "1-0"]
[Round "08"]
[TimeControl "180+2"]
[Date "2023.05.09"]
[WhiteClock "0:00:22"]
[BlackClock "0:00:00"]

1. d4 {[%clk 0:02:30]}  Nf6 {[%clk 0:02:57]} 2. c4 {[%clk 0:02:30]}  e6 {[%clk 0:02:56]} 3. Nc3 {[%clk 0:02:31]}  d5 {[%clk 0:02:50]} 4. cxd5 {[%clk 0:02:31]}  exd5 {[%clk 0:02:50]} 5. Bg5 {[%clk 0:02:31]}  c6 {[%clk 0:02:49]} 6. e3 {[%clk 0:02:31]}  h6 {[%clk 0:02:47]} 7. Bh4 {[%clk 0:02:28]}  Be7 {[%clk 0:02:47]} 8. Bd3 {[%clk 0:02:28]}  O-O {[%clk 0:02:47]} 9. Qc2 {[%clk 0:02:29]}  Nbd7 {[%clk 0:02:45]} 10. Nge2 {[%clk 0:02:29]}  a5 {[%clk 0:02:45]} 11. O-O {[%clk 0:02:29]}  Re8 {[%clk 0:02:42]} 12. f3 {[%clk 0:02:29]}  b5 {[%clk 0:02:42]} 13. a3 {[%clk 0:02:29]}  Ba6 {[%clk 0:02:42]} 14. Bf2 {[%clk 0:02:28]}  Qb6 {[%clk 0:02:40]} 15. h3 {[%clk 0:02:24]}  b4 {[%clk 0:02:31]} 16. axb4 {[%clk 0:02:18]}  axb4 {[%clk 0:02:29]} 17. Na4 {[%clk 0:02:00]}  Qb7 {[%clk 0:02:10]} 18. b3 {[%clk 0:01:56]}  Bxd3 {[%clk 0:02:05]} 19. Qxd3 {[%clk 0:01:57]}  c5 {[%clk 0:02:06]} 20. Nxc5 {[%clk 0:01:51]}  Nxc5 {[%clk 0:02:07]} 21. dxc5 {[%clk 0:01:51]}  Bxc5 {[%clk 0:02:07]} 22. Nd4 {[%clk 0:01:50]}  Qb6 {[%clk 0:01:58]} 23. g4 {[%clk 0:01:40]}  Bxd4 {[%clk 0:01:55]} 24. exd4 {[%clk 0:01:40]}  Rac8 {[%clk 0:01:46]} 25. Rac1 {[%clk 0:01:39]}  Qd6 {[%clk 0:01:42]} 26. Kg2 {[%clk 0:01:28]}  Qf4 {[%clk 0:01:41]} 27. Rc5 {[%clk 0:01:23]}  Qd6 {[%clk 0:01:20]} 28. Rfc1 {[%clk 0:01:19]}  Qe6 {[%clk 0:01:08]} 29. Re1 {[%clk 0:01:10]}  Qd7 {[%clk 0:00:59]} 30. Qd2 {[%clk 0:01:08]}  Rxe1 {[%clk 0:00:57]} 31. Qxe1 {[%clk 0:01:06]}  Rb8 {[%clk 0:00:43]} 32. Bg3 {[%clk 0:01:05]}  Rb7 {[%clk 0:00:34]} 33. Qe5 {[%clk 0:01:03]}  Qe6 {[%clk 0:00:33]} 34. Kf2 {[%clk 0:00:46]}  Nd7 {[%clk 0:00:33]} 35. Rc8+ {[%clk 0:00:44]}  Kh7 {[%clk 0:00:30]} 36. Qd6 {[%clk 0:00:40]}  Nf6 {[%clk 0:00:24]} 37. Qxe6 {[%clk 0:00:32]}  fxe6 {[%clk 0:00:25]} 38. Be5 {[%clk 0:00:32]}  Kg6 {[%clk 0:00:24]} 39. Rc7 {[%clk 0:00:25]}  Rb6 {[%clk 0:00:17]} 40. h4 {[%clk 0:00:23]}  Ne8 {[%clk 0:00:00]} 41. Re7 {[%clk 0:00:22]} 1-0


[Site "https://www.chess.com"]

[Event "Titled Tuesday Blitz May 9 Early 2023"]
[White "Mitusov, Semen"]
[Black "Sreyas Payyappat"]
[WhiteFideId "14151049"]
[BlackFideId "46674969"]
[WhiteElo "2389"]
[BlackElo "2043"]
[Result "1-0"]
[Round "08"]
[TimeControl "180+2"]
[Date "2023.05.09"]
[WhiteClock "0:00:21"]
[BlackClock "0:00:04"]

1. e4 {[%clk 0:03:00]}  c6 {[%clk 0:02:59]} 2. d4 {[%clk 0:03:00]}  d5 {[%clk 0:03:00]} 3. e5 {[%clk 0:03:00]}  Bf5 {[%clk 0:03:00]} 4. Nf3 {[%clk 0:03:00]}  e6 {[%clk 0:03:00]} 5. Be2 {[%clk 0:03:00]}  Ne7 {[%clk 0:02:59]} 6. O-O {[%clk 0:02:59]}  Ng6 {[%clk 0:03:00]} 7. a4 {[%clk 0:02:58]}  Nd7 {[%clk 0:02:54]} 8. a5 {[%clk 0:02:48]}  f6 {[%clk 0:02:52]} 9. exf6 {[%clk 0:02:38]}  Nxf6 {[%clk 0:02:49]} 10. a6 {[%clk 0:02:35]}  b6 {[%clk 0:02:48]} 11. c4 {[%clk 0:02:32]}  Bd6 {[%clk 0:02:45]} 12. Nc3 {[%clk 0:02:27]}  O-O {[%clk 0:02:43]} 13. Re1 {[%clk 0:02:24]}  Be4 {[%clk 0:02:33]} 14. Bd3 {[%clk 0:02:17]}  Bxf3 {[%clk 0:02:19]} 15. Qxf3 {[%clk 0:02:18]}  Ne4 {[%clk 0:02:19]} 16. Qh5 {[%clk 0:02:05]}  Qf6 {[%clk 0:02:04]} 17. Be3 {[%clk 0:01:58]}  Nf4 {[%clk 0:01:35]} 18. Bxf4 {[%clk 0:01:39]}  Qxf4 {[%clk 0:01:36]} 19. Bxe4 {[%clk 0:01:37]}  dxe4 {[%clk 0:01:01]} 20. Nxe4 {[%clk 0:01:35]}  Rf5 {[%clk 0:00:58]} 21. Qh3 {[%clk 0:01:27]}  Raf8 {[%clk 0:00:55]} 22. Qg3 {[%clk 0:01:10]}  Bb4 {[%clk 0:00:25]} 23. Qxf4 {[%clk 0:01:06]}  Rxf4 {[%clk 0:00:26]} 24. Re2 {[%clk 0:01:06]}  Rd8 {[%clk 0:00:25]} 25. Rd1 {[%clk 0:01:03]}  e5 {[%clk 0:00:24]} 26. d5 {[%clk 0:01:02]}  cxd5 {[%clk 0:00:15]} 27. cxd5 {[%clk 0:01:03]}  Rf7 {[%clk 0:00:15]} 28. Re3 {[%clk 0:00:59]}  Rfd7 {[%clk 0:00:15]} 29. Red3 {[%clk 0:00:59]}  h6 {[%clk 0:00:14]} 30. Kf1 {[%clk 0:00:53]}  Kf7 {[%clk 0:00:14]} 31. Ke2 {[%clk 0:00:51]}  Ke7 {[%clk 0:00:13]} 32. Nc3 {[%clk 0:00:43]}  Rc8 {[%clk 0:00:11]} 33. Rg3 {[%clk 0:00:37]}  g5 {[%clk 0:00:10]} 34. d6+ {[%clk 0:00:23]}  Ke6 {[%clk 0:00:08]} 35. Rgd3 {[%clk 0:00:23]}  Rxd6 {[%clk 0:00:08]} 36. Rxd6+ {[%clk 0:00:22]}  Bxd6 {[%clk 0:00:08]} 37. Nb5 {[%clk 0:00:23]}  Rc2+ {[%clk 0:00:06]} 38. Kd3 {[%clk 0:00:20]}  Rxf2 {[%clk 0:00:05]} 39. Nxd6 {[%clk 0:00:20]}  Kxd6 {[%clk 0:00:04]} 40. Ke3+ {[%clk 0:00:21]} 1-0


[Site "https://www.chess.com"]